bitfinex-derivatives/quotes_BTCF0:USTF0_20241010
["timestamp","ask_amount","ask_price","bid_price","bid_amount"]
[1728554533409,0.163175,61052.0,61051.0,0.081976]
[1728554533623,0.00245748,61053.0,61052.0,0.081975]
[1728554534211,0.3608,61061.0,61056.0,0.081969]
[1728554534417,0.3608,61061.0,61053.0,0.19]
[1728554534612,0.081964,61060.0,61054.0,0.081972]
[1728554534817,0.081964,61060.0,61053.0,0.19]
[1728554534818,0.3608,61061.0,61053.0,0.19]
[1728554535016,0.081967,61058.0,61056.0,0.081968]
[1728554535518,0.081968,61057.0,61056.0,0.081968]
[1728554535714,0.271966,61059.0,61053.0,0.001]
[1728554535920,0.081972,61054.0,61053.0,0.001]
[1728554536120,0.081976,61051.0,61050.0,0.081977]
[1728554536316,0.081976,61051.0,61046.0,0.19]
[1728554536520,0.081976,61051.0,61049.0,0.081979]
[1728554536721,0.081976,61051.0,61049.0,0.271979]
[1728554536916,0.081976,61051.0,61049.0,0.281979]
[1728554537526,0.081977,61050.0,61049.0,0.281979]
[1728554538224,0.13229901,61050.0,61049.0,0.281979]
[1728554538525,0.05032201,61050.0,61049.0,0.282979]
[1728554538725,0.05032201,61050.0,61049.0,0.643779]
[1728554539022,0.05032201,61050.0,61049.0,0.633779]
[1728554539411,0.05032201,61050.0,61049.0,0.634779]
[1728554542121,0.10912288,61050.0,61049.0,0.634779]
[1728554543321,0.13229901,61050.0,61049.0,0.634779]
[1728554544416,0.13229901,61050.0,61049.0,0.444779]
[1728554544923,0.13229901,61050.0,61049.0,0.002]
[1728554544924,0.32229901,61050.0,61049.0,0.002]
[1728554545122,0.19109819,61050.0,61049.0,0.002]
[1728554545327,0.26959819,61050.0,61049.0,0.002]
[1728554545626,0.45959819,61050.0,61049.0,0.002]
[1728554546222,0.350477,61050.0,61049.0,0.002]
[1728554547227,0.356477,61050.0,61049.0,0.002]
[1728554547526,0.356477,61050.0,61049.0,0.001]
[1728554547728,0.363477,61050.0,61049.0,0.002]
[1728554547926,0.357477,61050.0,61049.0,0.001]
[1728554548124,0.363477,61050.0,61049.0,0.002]
[1728554548628,0.356477,61050.0,61049.0,0.001]
[1728554548929,0.365477,61050.0,61049.0,0.002]
[1728554553425,0.365477,61050.0,61049.0,0.2082614]
[1728554554324,0.365477,61050.0,61049.0,0.12694711]
[1728554554623,0.175477,61050.0,61049.0,0.12694711]
[1728554555524,0.365477,61050.0,61049.0,0.12694711]
[1728554555829,0.30804872,61050.0,61049.0,0.12694711]
[1728554556018,0.2835,61050.0,61049.0,0.12694711]
[1728554556222,0.365477,61050.0,61049.0,0.12694711]
[1728554558626,0.365477,61050.0,61049.0,0.12694767]
[1728554559029,0.726277,61050.0,61049.0,0.12694767]
[1728554559831,0.916277,61050.0,61049.0,0.12694767]
[1728554560037,0.726277,61050.0,61049.0,0.002]
[1728554561129,0.8354186,61050.0,61049.0,0.002]
[1728554561337,1.01538913,61050.0,61049.0,0.002]
[1728554561645,0.8354186,61050.0,61049.0,0.002]
[1728554562940,1.01553885,61050.0,61049.0,0.002]
[1728554563334,0.83541644,61050.0,61049.0,0.002]
[1728554567046,0.47461644,61050.0,61049.0,0.002]
[1728554567356,0.83541644,61050.0,61049.0,0.002]
[1728554568153,0.726277,61050.0,61049.0,0.0016]
[1728554569051,0.536277,61050.0,61049.0,0.0016]
[1728554572438,0.175477,61050.0,61049.0,0.05047601]
[1728554572639,0.096977,61050.0,61049.0,0.083579]
[1728554574545,0.096977,61050.0,61049.0,0.14874701]
[1728554575151,0.015,61050.0,61049.0,0.14874701]
[1728554575344,0.015,61050.0,61049.0,0.50954701]
[1728554575546,0.015,61050.0,61049.0,0.444379]
[1728554575751,0.015,61050.0,61049.0,0.454379]
[1728554576262,0.015,61050.0,61049.0,0.444379]
[1728554577657,0.015,61050.0,61049.0,0.52578681]
[1728554579651,0.015,61050.0,61049.0,0.55540461]
[1728554581457,0.3608,61055.0,61049.0,1.15540461]
[1728554581765,0.081966,61059.0,61058.0,0.081963]
[1728554582460,0.6492,61064.0,61057.0,0.19]
[1728554582669,0.442762,61062.0,61060.0,0.081963]
[1728554583659,0.456762,61062.0,61061.0,0.081963]
[1728554583855,0.48570351,61062.0,61061.0,0.081963]
[1728554584155,0.40374151,61062.0,61061.0,0.271963]
[1728554584464,0.41774151,61062.0,61061.0,0.271963]
[1728554584853,0.05694151,61062.0,61061.0,0.271963]
[1728554585053,0.41774151,61062.0,61061.0,0.272963]
[1728554585461,0.41774151,61062.0,61061.0,0.082963]
[1728554585660,0.40574151,61062.0,61061.0,0.082963]
[1728554586555,0.40574151,61062.0,61061.0,0.083963]
[1728554586756,0.48770251,61062.0,61061.0,0.002]
[1728554587156,0.12690251,61062.0,61061.0,0.002]
[1728554587466,0.04494151,61062.0,61061.0,0.002]
[1728554588059,0.12690251,61062.0,61061.0,0.002]
[1728554588258,0.23601579,61062.0,61061.0,0.002]
[1728554588567,0.17722009,61062.0,61061.0,0.002]
[1728554589266,0.17622009,61062.0,61061.0,0.002]
[1728554589761,0.12590251,61062.0,61061.0,0.002]
[1728554592567,0.24590251,61062.0,61061.0,0.002]
[1728554593470,0.04394151,61062.0,61061.0,0.083963]
[1728554594473,0.12590251,61062.0,61061.0,0.083963]
[1728554594666,0.24590251,61062.0,61061.0,0.083963]
[1728554595769,0.16394151,61062.0,61061.0,0.083963]
[1728554596869,0.04394151,61062.0,61061.0,0.203963]
[1728554598369,0.015,61062.0,61061.0,0.203963]
[1728554598569,0.015,61062.0,61061.0,0.083963]
[1728554598776,0.015,61062.0,61061.0,0.203963]
[1728554599164,0.06531347,61062.0,61061.0,0.203963]
[1728554599365,0.24519611,61062.0,61061.0,0.203963]
[1728554599775,0.36519611,61062.0,61061.0,0.083963]
[1728554600075,0.24519611,61062.0,61061.0,0.083963]
[1728554600282,0.24519611,61062.0,61061.0,0.203963]
[1728554600574,0.06531347,61062.0,61061.0,0.203963]
[1728554602264,0.12410552,61062.0,61061.0,0.203963]
[1728554604874,0.20606652,61062.0,61061.0,0.203963]
[1728554605377,0.20606652,61062.0,61061.0,0.002]
[1728554605378,0.44606753,61062.0,61061.0,0.002]
[1728554605677,0.336961,61062.0,61058.0,0.04884385]
[1728554605869,0.562765,61059.0,61058.0,0.04884385]
[1728554606175,0.662765,61059.0,61054.0,0.04885639]
[1728554606371,0.662765,61059.0,61043.0,0.33055722]
[1728554606372,0.081973,61053.0,61051.0,0.04885639]
[1728554606675,0.081973,61053.0,61052.0,0.04885639]
[1728554606867,0.271973,61053.0,61052.0,0.04885639]
[1728554607267,0.271973,61053.0,61052.0,0.04884933]
[1728554608777,0.280973,61053.0,61052.0,0.04984933]
[1728554609176,0.364073,61053.0,61052.0,0.04984933]
[1728554609377,0.364073,61053.0,61052.0,0.001]
[1728554609581,0.371073,61053.0,61052.0,0.002]
[1728554609879,0.287973,61053.0,61052.0,0.002]
[1728554610076,0.31878728,61053.0,61052.0,0.05084933]
[1728554610284,0.30978728,61053.0,61052.0,0.001]
[1728554610580,0.12878728,61053.0,61052.0,0.083975]
[1728554610782,0.12878728,61053.0,61052.0,0.1327971]
[1728554611075,0.04681428,61053.0,61052.0,0.083975]
[1728554611283,0.017,61053.0,61052.0,0.273975]
[1728554611673,0.016,61053.0,61052.0,0.40529523]
[1728554611883,0.008,61053.0,61052.0,0.40428798]
[1728554612079,0.01,61053.0,61052.0,0.42160014]
[1728554612282,0.01,61053.0,61052.0,0.356475]
[1728554614472,0.281973,61053.0,61052.0,0.002]
[1728554620669,0.281973,61053.0,61052.0,0.12694035]
[1728554621581,0.281973,61053.0,61052.0,0.20828345]
[1728554621785,0.281973,61053.0,61052.0,0.002]
[1728554622877,0.281973,61053.0,61052.0,0.05081923]
[1728554623384,0.281973,61053.0,61052.0,0.002]
[1728554623385,0.091973,61053.0,61052.0,0.002]
[1728554624085,0.102973,61053.0,61052.0,0.002]
[1728554624679,0.105973,61053.0,61052.0,0.001]
[1728554625381,0.106973,61053.0,61052.0,0.001]
[1728554625777,0.092973,61053.0,61052.0,0.001]
[1728554625980,0.105973,61053.0,61052.0,0.001]
[1728554626181,0.827573,61053.0,61052.0,0.001]
[1728554626679,0.081975,61052.0,61051.0,0.04878842]
[1728554626876,0.271975,61052.0,61051.0,0.04878842]
[1728554627595,0.081976,61051.0,61050.0,0.04878842]
[1728554627780,0.19,61051.0,61048.0,0.0650849]
[1728554628083,0.081979,61049.0,61048.0,0.0650849]
[1728554628387,0.201979,61049.0,61048.0,0.0650849]
[1728554629775,0.201979,61049.0,61048.0,0.0660849]
[1728554629985,0.209979,61049.0,61048.0,0.0660849]
[1728554630686,0.097979,61049.0,61048.0,0.08298]
[1728554631281,0.098979,61049.0,61048.0,0.1643231]
[1728554631579,0.098979,61049.0,61048.0,0.20792806]
[1728554631779,0.1289696,61049.0,61048.0,0.20792806]
[1728554631986,0.1189696,61049.0,61048.0,0.20792806]
[1728554633082,0.1119696,61049.0,61048.0,0.20692806]
[1728554633383,0.1139696,61049.0,61048.0,0.20692806]
[1728554633590,0.1139696,61049.0,61048.0,0.12494806]
[1728554633886,0.1139696,61049.0,61048.0,0.20630721]
[1728554634092,0.1119696,61049.0,61048.0,0.21030721]
[1728554634293,0.1119696,61049.0,61048.0,0.12894806]
[1728554634993,0.1209696,61049.0,61048.0,0.12894806]
[1728554635582,0.1199696,61049.0,61048.0,0.12894806]
[1728554635783,0.1199696,61049.0,61047.0,0.081981]
[1728554635979,0.1269696,61049.0,61048.0,0.001]
[1728554636587,0.1199696,61049.0,61047.0,0.081981]
[1728554636786,0.1199696,61049.0,61048.0,0.004]
[1728554637291,0.1139696,61049.0,61048.0,0.004]
[1728554637792,0.1119696,61049.0,61047.0,0.086981]
[1728554638585,0.0299906,61049.0,61048.0,0.08198]
[1728554638791,0.3608,61050.0,61049.0,0.081979]
[1728554638996,0.3608,61050.0,61049.0,0.275779]
[1728554639296,0.39052987,61050.0,61049.0,0.275779]
[1728554640090,0.47250687,61050.0,61049.0,0.275779]
[1728554640297,0.47250687,61050.0,61049.0,0.155779]
[1728554640894,0.47650687,61050.0,61049.0,0.155779]
[1728554641096,0.48250687,61050.0,61049.0,0.155779]
[1728554641593,0.01,61050.0,61049.0,0.275779]
[1728554641798,0.3608,61057.0,61049.0,1.367179]
[1728554641996,0.3608,61057.0,61056.0,0.201969]
[1728554642196,0.4808,61064.0,61056.0,0.201969]
[1728554642398,0.4808,61064.0,61060.0,0.081964]
[1728554642399,0.081962,61062.0,61060.0,0.081964]
[1728554642803,0.3608,61064.0,61060.0,0.081964]
[1728554643105,0.442759,61064.0,61060.0,0.154964]
[1728554643402,0.19419995,61061.0,61060.0,0.154964]
[1728554643593,0.22416413,61061.0,61060.0,0.154964]
[1728554643797,0.23816413,61061.0,61060.0,0.155964]
[1728554644104,0.23816413,61061.0,61060.0,0.156964]
[1728554644313,0.20819995,61061.0,61060.0,0.156964]
[1728554645706,0.20819995,61061.0,61060.0,0.28188526]
[1728554645707,0.028,61061.0,61060.0,0.28188526]
[1728554649104,0.109963,61061.0,61060.0,0.19992126]
[1728554649300,0.109963,61061.0,61060.0,0.002]
[1728554650796,0.33907982,61061.0,61060.0,0.002]
[1728554650997,0.47867982,61061.0,61043.0,0.3608]
[1728554651308,0.20198,61048.0,61047.0,0.00215673]
[1728554651515,0.25229921,61048.0,61047.0,0.00215673]
[1728554651804,0.25229921,61048.0,61047.0,0.08413773]
[1728554651805,0.17031921,61048.0,61047.0,0.08413773]
[1728554652007,0.22912513,61048.0,61047.0,0.00215673]
[1728554652307,0.31110513,61048.0,61047.0,0.00315673]
[1728554653008,0.31210513,61048.0,61047.0,0.01115673]
[1728554653407,0.19210513,61048.0,61047.0,0.01115673]
[1728554653606,0.19210513,61048.0,61047.0,0.09313773]
[1728554654110,0.11012513,61048.0,61047.0,0.09413773]
[1728554654308,0.05131921,61048.0,61047.0,0.09413773]
[1728554654706,0.18089974,61048.0,61047.0,0.09413773]
[1728554654902,0.23121895,61048.0,61047.0,0.09413773]
[1728554655809,0.23221895,61048.0,61047.0,0.09813773]
[1728554656505,0.23221895,61048.0,61047.0,0.28813773]
[1728554657509,0.05231921,61048.0,61047.0,0.28813773]
[1728554658804,0.04096133,61050.0,61049.0,0.081979]
[1728554659004,0.04096133,61050.0,61049.0,0.30458123]
[1728554659411,0.04096133,61050.0,61049.0,0.31458123]
[1728554659610,0.04096133,61050.0,61049.0,0.21691578]
[1728554659812,0.04096133,61050.0,61049.0,0.31459208]
[1728554660013,0.005,61050.0,61049.0,0.31559208]
[1728554660313,0.005,61050.0,61049.0,0.21791578]
[1728554660517,0.005,61050.0,61049.0,0.20791578]
[1728554660908,0.005,61050.0,61049.0,0.30560405]
[1728554660909,0.008,61050.0,61049.0,0.30560405]
[1728554661407,0.11218113,61053.0,61052.0,0.081975]
[1728554661711,0.11218113,61053.0,61052.0,0.20691178]
[1728554662113,0.17989974,61054.0,61052.0,0.22262505]
[1728554662317,0.17989974,61054.0,61053.0,0.30459805]
[1728554662615,0.26187174,61054.0,61053.0,0.30459805]
[1728554663314,0.17989974,61054.0,61053.0,0.20690978]
[1728554663613,0.18989974,61054.0,61053.0,0.85132198]
[1728554664311,0.19689974,61054.0,61053.0,1.56634871]
[1728554664508,0.19689974,61054.0,61053.0,1.45232198]
[1728554664909,0.017,61054.0,61053.0,1.45232198]
[1728554665812,0.017,61054.0,61053.0,1.45231854]
[1728554666015,0.017,61054.0,61053.0,1.30026978]
[1728554666717,0.008,61054.0,61053.0,1.67306978]
[1728554667220,0.008,61054.0,61053.0,1.82511855]
[1728554668511,0.001,61054.0,61053.0,0.73475855]
[1728554668817,0.001,61054.0,61053.0,0.73476049]
[1728554669321,0.002,61054.0,61053.0,0.74676049]
[1728554671618,0.083972,61054.0,61053.0,0.23390978]
[1728554672216,0.083972,61054.0,61053.0,0.108973]
[1728554672614,0.002,61054.0,61053.0,0.42390754]
[1728554672914,0.05231885,61054.0,61053.0,0.659773]
[1728554673526,0.05231885,61054.0,61053.0,0.298973]
[1728554673720,0.05231885,61054.0,61053.0,0.659773]
[1728554674117,0.05231826,61054.0,61053.0,0.298973]
[1728554674817,0.16563377,61054.0,61053.0,0.298973]
[1728554675125,0.2159536,61054.0,61053.0,0.298973]
[1728554675522,0.05231983,61054.0,61053.0,0.298973]
[1728554675820,0.05231983,61054.0,61053.0,0.659773]
[1728554676021,0.05231983,61054.0,61053.0,0.469773]
[1728554676523,0.13429183,61054.0,61053.0,0.469773]
[1728554676922,0.05231983,61054.0,61053.0,0.108973]
[1728554677222,0.05231983,61054.0,61053.0,0.298973]
[1728554679730,0.05231753,61054.0,61053.0,0.298973]
[1728554680829,0.002,61054.0,61053.0,0.42389727]
[1728554681529,0.002,61054.0,61053.0,0.57595135]
[1728554682523,0.001,61054.0,61053.0,0.57595135]
[1728554686334,0.001,61054.0,61053.0,0.58595135]
[1728554686631,0.02881109,61060.0,61053.0,0.51595135]
[1728554686935,0.081963,61061.0,61060.0,0.081964]
[1728554687234,0.081963,61061.0,61060.0,0.20688827]
[1728554687930,0.081963,61061.0,61060.0,0.081964]
[1728554688533,0.1120387,61061.0,61060.0,0.081964]
[1728554689533,0.1210387,61061.0,61060.0,0.082964]
[1728554689723,0.0390757,61061.0,61060.0,0.082964]
[1728554690119,0.0460757,61061.0,61060.0,0.082964]
[1728554690829,0.1280387,61061.0,61060.0,0.082964]
[1728554692527,0.0460757,61061.0,61060.0,0.082964]
[1728554697440,0.1280387,61061.0,61060.0,0.082964]
[1728554697640,0.3180387,61061.0,61060.0,0.002]
[1728554697830,0.3834387,61061.0,61060.0,0.002]
[1728554699341,0.3834387,61061.0,61060.0,0.06719675]
[1728554700643,0.0460757,61061.0,61060.0,0.14916075]
[1728554701034,0.1280387,61061.0,61060.0,0.14916075]
[1728554702035,0.0460757,61061.0,61060.0,0.14916075]
[1728554702436,0.0460757,61061.0,61060.0,0.083964]
[1728554703034,0.09639119,61061.0,61060.0,0.083964]
[1728554704330,0.15518443,61061.0,61060.0,0.083964]
[1728554704649,0.09639119,61061.0,61060.0,0.083964]
[1728554705745,0.22644053,61061.0,61060.0,0.083964]
[1728554705945,0.27675602,61061.0,61060.0,0.083964]
[1728554706147,0.09639119,61061.0,61060.0,0.083964]
[1728554708050,0.17835419,61061.0,61060.0,0.083964]
[1728554708245,0.09639119,61061.0,61060.0,0.083964]
[1728554708452,0.09639119,61061.0,61060.0,0.203964]
[1728554709553,0.09639119,61061.0,61060.0,0.083964]
[1728554710053,0.17835419,61061.0,61060.0,0.083964]
[1728554710647,0.17835419,61061.0,61060.0,0.002]
[1728554710955,0.1280387,61061.0,61060.0,0.002]
[1728554711469,1.2193587,61061.0,61060.0,0.002]
[1728554711667,0.6193587,61061.0,61060.0,0.002]
[1728554711871,0.6193587,61061.0,61060.0,0.05090669]
[1728554712375,0.3180387,61061.0,61060.0,0.05090669]
[1728554713265,0.3180387,61061.0,61060.0,0.002]
[1728554716665,0.3180387,61061.0,61060.0,0.05090669]
[1728554717866,0.3180387,61061.0,61060.0,0.002]
[1728554719375,0.081964,61060.0,61059.0,0.03450669]
[1728554719675,0.3608,61060.0,61054.0,0.06520206]
[1728554719977,0.19,61057.0,61054.0,0.06520206]
[1728554720678,0.081971,61055.0,61054.0,0.06520206]
[1728554721474,0.081971,61055.0,61054.0,0.06820206]
[1728554721773,0.006,61060.0,61054.0,0.61900206]
[1728554721968,0.006,61060.0,61059.0,0.271965]
[1728554722269,0.0300757,61061.0,61059.0,0.19]
[1728554722472,0.081961,61062.0,61058.0,0.06520206]
[1728554722664,0.081961,61062.0,61061.0,0.081963]
[1728554724167,0.091961,61062.0,61061.0,0.082963]
[1728554724865,0.099961,61062.0,61061.0,0.083963]
[1728554725266,0.12955113,61062.0,61061.0,0.083963]
[1728554725867,0.17986714,61062.0,61061.0,0.083963]
[1728554726073,0.238661,61062.0,61061.0,0.083963]
[1728554726775,0.1567,61062.0,61061.0,0.083963]
[1728554727775,0.09790614,61062.0,61061.0,0.083963]
[1728554729772,0.1567,61062.0,61061.0,0.083963]
[1728554729972,0.09790614,61062.0,61061.0,0.083963]
[1728554730178,0.04759013,61062.0,61061.0,0.083963]
[1728554730478,0.09790614,61062.0,61061.0,0.083963]
[1728554730870,0.15669791,61062.0,61061.0,0.083963]
[1728554731478,0.12710778,61062.0,61061.0,0.083963]
[1728554731676,0.06831392,61062.0,61061.0,0.083963]
[1728554732973,0.018,61062.0,61061.0,0.14916506]
[1728554734587,0.018,61062.0,61061.0,0.203963]
[1728554736869,0.02886867,61065.0,61064.0,0.081959]
[1728554737185,0.081952,61069.0,61068.0,0.081951]
[1728554737478,0.1120529,61072.0,61071.0,0.081949]
[1728554737692,0.1120529,61072.0,61071.0,0.201949]
[1728554738378,0.0301029,61072.0,61071.0,0.201949]
[1728554738587,0.442744,61075.0,61072.0,0.081948]
[1728554739081,0.08440322,61074.0,61072.0,0.081948]
[1728554739376,0.081947,61073.0,61072.0,0.081948]
[1728554740981,0.49305653,61073.0,61072.0,0.082948]
[1728554741182,0.10909581,61073.0,61072.0,0.082948]
[1728554741481,0.05030953,61073.0,61072.0,0.082948]
[1728554741882,0.05830953,61073.0,61072.0,0.083948]
[1728554742082,0.11709581,61073.0,61072.0,0.083948]
[1728554742885,0.10909581,61073.0,61072.0,0.082948]
[1728554743185,0.32604281,61073.0,61072.0,0.002]
[1728554743778,0.32604281,61073.0,61072.0,0.083948]
[1728554744674,0.31804281,61073.0,61072.0,0.082948]
[1728554744882,0.32604281,61073.0,61072.0,0.083948]
[1728554746086,0.20604281,61073.0,61072.0,0.083948]
[1728554748077,0.096947,61073.0,61072.0,0.083948]
[1728554754888,0.015,61073.0,61072.0,0.083948]
[1728554756496,0.015,61073.0,61072.0,0.1131151]
[1728554756497,0.008,61073.0,61072.0,0.1131151]
[1728554756693,0.008,61073.0,61072.0,0.1141151]
[1728554756694,0.014,61073.0,61072.0,0.1141151]
[1728554756995,0.013,61073.0,61072.0,0.1141151]
[1728554757891,0.009,61073.0,61072.0,0.1131151]
[1728554758084,0.003,61073.0,61072.0,0.1121151]
[1728554758281,0.008,61073.0,61072.0,0.1121151]
[1728554758690,0.3608,61083.0,61082.0,0.081934]
[1728554759100,0.39053605,61083.0,61082.0,0.081934]
[1728554759487,0.47246905,61083.0,61082.0,0.081934]
[1728554759890,0.47746905,61083.0,61082.0,0.082934]
[1728554760501,0.48146905,61083.0,61082.0,0.083934]
[1728554760692,0.48146905,61083.0,61082.0,0.002]
[1728554760693,0.60146905,61083.0,61082.0,0.002]
[1728554763093,0.65176854,61083.0,61082.0,0.002]
[1728554764694,0.71054634,61083.0,61082.0,0.002]
[1728554766887,0.34974634,61083.0,61082.0,0.002]
[1728554767093,0.71054634,61083.0,61082.0,0.002]
[1728554767288,0.71054911,61083.0,61082.0,0.002]
[1728554768486,0.34974911,61083.0,61082.0,0.002]
[1728554768690,0.71054911,61083.0,61082.0,0.002]
[1728554768993,0.081934,61082.0,61081.0,0.07066078]
[1728554769186,0.19101406,61082.0,61081.0,0.07066078]
[1728554769893,0.55181406,61082.0,61081.0,0.07066078]
[1728554770088,0.55181406,61082.0,61081.0,0.07166078]
[1728554770089,0.55581406,61082.0,61081.0,0.07166078]
[1728554770498,0.55581406,61082.0,61081.0,0.07266078]
[1728554770687,0.11308006,61082.0,61081.0,0.07266078]
[1728554770895,0.05430226,61082.0,61081.0,0.07266078]
[1728554771088,0.004,61082.0,61081.0,0.07266078]
[1728554772901,0.02973605,61083.0,61081.0,0.001]
[1728554773206,0.02973605,61083.0,61079.0,0.081938]
[1728554773207,0.081938,61080.0,61079.0,0.081938]
[1728554774291,0.3658,61083.0,61072.0,0.1638671]
[1728554774500,0.081939,61079.0,61078.0,0.081939]
[1728554775191,0.4808,61080.0,61072.0,0.1480051]
[1728554775396,0.08194,61078.0,61077.0,0.201938]
[1728554776501,0.08194,61078.0,61077.0,0.206938]
[1728554777105,0.08194,61078.0,61077.0,0.210938]
[1728554777502,0.3608,61094.0,61077.0,0.691738]
[1728554777810,0.4808,61094.0,61090.0,0.081923]
[1728554778099,0.081922,61091.0,61090.0,0.081923]
[1728554778305,0.05876948,61091.0,61090.0,0.201924]
[1728554778507,0.05029514,61091.0,61090.0,0.201924]
[1728554779203,0.17996815,61097.0,61096.0,0.081916]
[1728554779404,0.10905898,61097.0,61096.0,0.201916]
[1728554779598,0.23020946,61097.0,61096.0,0.201916]
[1728554779907,0.05029254,61097.0,61096.0,0.201916]
[1728554780300,0.05029254,61097.0,61096.0,0.334116]
[1728554780496,0.05029254,61097.0,61096.0,0.335116]
[1728554780497,0.05529254,61097.0,61096.0,0.335116]
[1728554780703,0.05629254,61097.0,61096.0,0.336116]
[1728554780899,0.006,61097.0,61096.0,0.336116]
[1728554781298,0.207914,61097.0,61096.0,0.002]
[1728554781496,0.568714,61097.0,61096.0,0.002]
[1728554781908,0.61900223,61097.0,61096.0,0.002]
[1728554782103,0.61400223,61097.0,61096.0,0.001]
[1728554782305,0.49800223,61097.0,61096.0,0.001]
[1728554782503,0.68900223,61097.0,61096.0,0.002]
[1728554783005,0.74776344,61097.0,61096.0,0.002]
[1728554783204,0.68900223,61097.0,61096.0,0.002]
[1728554784604,0.74776862,61097.0,61096.0,0.002]
[1728554784805,1.78004223,61097.0,61079.0,0.19]
[1728554785011,0.19,61085.0,61079.0,0.19]
[1728554785200,0.081932,61084.0,61083.0,0.442732]
[1728554785602,0.19,61089.0,61083.0,0.3608]
[1728554785803,0.05029484,61088.0,61086.0,0.081929]
[1728554786010,0.13222284,61087.0,61086.0,0.081929]
[1728554786211,0.081928,61087.0,61086.0,0.081929]
[1728554787818,0.082928,61087.0,61086.0,0.082929]
[1728554789419,0.089928,61087.0,61086.0,0.083929]
[1728554792022,0.450728,61087.0,61086.0,0.083929]
[1728554793128,0.50102383,61087.0,61086.0,0.083929]
[1728554793516,0.66451238,61087.0,61086.0,0.083929]
[1728554794929,0.66451238,61087.0,61086.0,0.273929]
[1728554794930,0.41909583,61087.0,61086.0,0.273929]
[1728554795629,0.41909535,61087.0,61086.0,0.273929]
[1728554796528,0.41909535,61087.0,61086.0,1.365049]
[1728554796833,0.05829535,61087.0,61086.0,1.175049]
[1728554797033,0.008,61087.0,61086.0,1.175049]
[1728554797234,0.16348855,61092.0,61086.0,1.175049]
[1728554797533,0.52428855,61095.0,61094.0,0.081918]
[1728554797830,0.41108958,61095.0,61094.0,0.271918]
[1728554798528,0.16348855,61096.0,61094.0,0.19]
[1728554798727,0.442711,61100.0,61094.0,0.19]
[1728554798933,0.442711,61100.0,61095.0,0.1237]
[1728554799136,0.47238506,61100.0,61095.0,0.1237]
[1728554799438,0.39047406,61100.0,61096.0,0.081916]
[1728554799626,0.081912,61099.0,61096.0,0.081916]
[1728554799828,0.00345576,61097.0,61096.0,0.081916]
[1728554800734,0.00245576,61097.0,61096.0,0.082916]
[1728554802135,0.39047406,61100.0,61096.0,0.002]
[1728554802333,0.39047406,61100.0,61099.0,0.081912]
[1728554802637,0.3608,61100.0,61099.0,0.081912]
[1728554803427,0.3618,61100.0,61099.0,0.081912]
[1728554803633,0.001,61100.0,61099.0,0.081912]
[1728554803834,0.081905,61104.0,61102.0,0.081908]
[1728554804132,0.081905,61104.0,61102.0,0.271908]
[1728554805531,0.45996,61103.0,61102.0,0.272908]
[1728554805739,0.541866,61103.0,61102.0,0.001]
[1728554806131,0.541866,61103.0,61102.0,0.002]
[1728554806741,1.74092,61103.0,61089.0,0.00245525]
[1728554807040,0.271924,61090.0,61089.0,0.00245525]
[1728554808228,0.271924,61090.0,61084.0,0.081931]
[1728554808229,0.08193,61086.0,61084.0,0.081931]
[1728554809343,0.08193,61086.0,61085.0,0.08193]
[1728554809537,0.3608,61087.0,61084.0,0.007]
[1728554809848,0.3608,61087.0,61086.0,0.271929]
[1728554810642,0.3608,61093.0,61092.0,0.081921]
[1728554811335,0.081919,61094.0,61091.0,0.19]
[1728554811536,0.081919,61094.0,61093.0,0.08192]
[1728554812832,0.083919,61094.0,61093.0,0.002]
[1728554813033,0.444719,61094.0,61093.0,0.002]
[1728554814449,0.444719,61094.0,61093.0,0.08392]
[1728554816243,0.49500902,61094.0,61093.0,0.08392]
[1728554817539,0.13420902,61094.0,61093.0,0.08392]
[1728554817738,0.49500902,61094.0,61093.0,0.08392]
[1728554819142,0.49501041,61094.0,61093.0,0.08392]
[1728554819547,0.13421041,61094.0,61093.0,0.08392]
[1728554819748,0.49501041,61094.0,61093.0,0.08392]
[1728554821254,0.55377551,61094.0,61093.0,0.08392]
[1728554821845,0.55377551,61094.0,61093.0,0.002]
[1728554823345,0.444719,61094.0,61093.0,0.002]
[1728554824352,0.444719,61094.0,61093.0,0.0016]
[1728554824546,0.444719,61094.0,61093.0,0.08352]
[1728554825449,0.3628,61094.0,61093.0,0.08352]
[1728554831256,0.47185464,61094.0,61093.0,0.08352]
[1728554832149,0.47185464,61094.0,61093.0,0.14292]
[1728554832852,0.47185464,61094.0,61093.0,0.20312]
[1728554834949,0.55377264,61094.0,61093.0,0.0016]
[1728554835155,0.55377264,61094.0,61083.0,0.081932]
[1728554835156,0.081931,61085.0,61083.0,0.081932]
[1728554835453,0.47185464,61094.0,61083.0,0.081932]
[1728554835454,0.19098664,61084.0,61083.0,0.081932]
[1728554836463,0.19098664,61084.0,61083.0,0.108932]
[1728554836658,0.38098664,61084.0,61083.0,0.108932]
[1728554836856,0.38099244,61084.0,61083.0,0.027]
[1728554838260,0.38099244,61084.0,61083.0,0.17397204]
[1728554838261,0.271932,61084.0,61083.0,0.17397204]
[1728554839252,0.271932,61084.0,61083.0,0.027]
[1728554839958,0.30166532,61084.0,61083.0,0.027]
[1728554841660,0.17056532,61084.0,61083.0,0.027]
[1728554843461,0.36056532,61084.0,61083.0,0.027]
[1728554844571,0.30166532,61084.0,61083.0,0.027]
[1728554845462,0.11166532,61084.0,61083.0,0.027]
[1728554846177,0.11166532,61084.0,61083.0,0.108933]
[1728554846362,0.11166532,61084.0,61083.0,0.027]
[1728554847770,0.11166532,61084.0,61083.0,0.0264]
[1728554852972,0.47246532,61084.0,61083.0,0.0264]
[1728554853467,0.58154353,61084.0,61083.0,0.0264]
[1728554854366,0.081938,61079.0,61078.0,0.00245559]
[1728554854570,0.68303941,61079.0,61078.0,0.00245559]
[1728554854874,0.74181621,61079.0,61078.0,0.00245559]